fUSD/lending_fUSD_20250413
["ID","MTS","AMOUNT","RATE_DAILY","PERIOD"]
[357928695,1744581034256,-514.43,0.00019452,2]
[357928696,1744581034267,-500.0,0.00019452,2]
[357928697,1744581034277,-545.31,0.00019452,2]
[357928698,1744581034287,-206.45,0.00019452,2]
[357928699,1744581034298,-500.0,0.00019452,2]
[357928700,1744581034309,-362.71282729,0.00019452,2]
[357928701,1744581034319,-500.0,0.00019452,2]
[357928702,1744581034329,-500.0,0.00019452,2]
[357928703,1744581034338,-286.09,0.00019452,2]
[357928704,1744581034348,-500.0,0.00019452,2]
[357928705,1744581034359,-500.0,0.00019452,2]
[357928706,1744581034369,-150.238847,0.000195,7]
[357928707,1744581034379,-164.81,0.00019503,2]
[357928708,1744581034389,-152.89,0.00019595,2]
[357928709,1744581034400,-2000.0,0.00019726,2]
[357928710,1744581034410,-302.75608849,0.00019726,2]
[357928711,1744581034420,-500.0,0.00019726,2]
[357928712,1744581034430,-318.52,0.00019726,2]
[357928713,1744581034441,-335.8,0.00019726,2]
[357928714,1744581034451,-239.1,0.00019726,2]
[357928715,1744581034462,-500.0,0.00019726,2]
[357928716,1744581034472,-3102.24,0.00019726,2]
[357928717,1744581034482,-514.43,0.00019726,2]
[357928718,1744581034492,-381.06,0.00019726,2]
[357928719,1744581034502,-401.63,0.00019726,2]
[357928720,1744581034512,-637.21,0.00019726,2]
[357928721,1744581034522,-500.0,0.00019726,2]
[357928722,1744581034531,-500.0,0.00019726,2]
[357928723,1744581034541,-406.42011658,0.00019726,2]
[357928724,1744581034551,-224.4549,0.000198,2]
[357928725,1744581034561,-315.7369,0.000198,2]
[357928726,1744581034570,-426.63,0.000198,2]
[357928727,1744581034580,-150.0,0.00019869,2]
[357928728,1744581034590,-467.874,0.00019886,2]
[357928729,1744581034599,-1000.0,0.00019886,2]
[357928730,1744581034609,-339.662,0.00019899,2]
[357928731,1744581034619,-2500.0,0.00019899,2]
[357928732,1744581034628,-169.09372726,0.00019899,2]
[357928733,1744581034638,-500.0,0.000199,2]
[357928734,1744581034648,-2356.3588,0.000199,2]
[357928735,1744581034661,-225.0,0.000199,2]
[357928736,1744581034671,-2005.843,0.000199,2]
[357928737,1744581034680,-9333.6966,0.000199,2]
[357928738,1744581034691,-665.1963,0.000199,2]
[357928739,1744581034701,-2882.988,0.000199,2]
[357928740,1744581034711,-170.90800558,0.000199,2]
[357928741,1744581034720,-169.09372726,0.000199,2]
[357928742,1744581034731,-281.26892602,0.000199,2]
[357928743,1744581034741,-19507.45082825,0.000199,2]
[357928744,1744581034752,-5000.0,0.000199,2]
[357928745,1744581034762,-150.0,0.00019942,2]
[357928746,1744581034771,-724.43393153,0.00019986,2]
[357928747,1744581034781,-200.0,0.00019986,2]
[357928748,1744581034790,-200.0,0.00019986,2]
[357928749,1744581034799,-150.0,0.00019986,2]
[357928750,1744581034809,-200.0,0.00019986,2]
[357928751,1744581034818,-301.1514471,0.00019986,2]
[357928752,1744581034829,-14329.5493131,0.00019986,2]
[357928753,1744581034838,-407.7419634,0.00019986,2]
[357928754,1744581034848,-3119.2586675,0.00019986,2]
[357928755,1744581034857,-200.0,0.00019986,2]
[357928756,1744581034867,-151.0,0.00019988,2]
[357928757,1744581034877,-193.12394515,0.0001999,2]
[357928758,1744581034886,-193.12394515,0.0001999,2]
[357928759,1744581034897,-153.409,0.00019999,2]
[357928760,1744581034907,-1327.0,0.00019999,2]
[357928761,1744581034917,-1287.0,0.00019999,2]
[357928762,1744581034927,-2046.0,0.00019999,2]
[357928763,1744581034941,-791.0,0.00019999,2]
[357928764,1744581034951,-1279.0,0.00019999,2]
[357928765,1744581034961,-907.0,0.00019999,2]
[357928766,1744581034971,-545.0,0.00019999,2]
[357928767,1744581034980,-1438.0,0.00019999,2]
[357928768,1744581034991,-4147.0,0.00019999,2]
[357928769,1744581035002,-656.988,0.00019999,2]
[357928770,1744581035013,-3963.0,0.00019999,2]
[357928771,1744581035026,-152.0,0.00019999,2]
[357928772,1744581035037,-150.0,0.00019999,2]
[357928773,1744581035048,-1122.0,0.00019999,2]
[357928774,1744581035058,-500.0,0.00019999,2]
[357928775,1744581035068,-500.0,0.00019999,2]
[357928776,1744581035078,-500.0,0.00019999,2]
[357928777,1744581035087,-500.0,0.00019999,2]
[357928778,1744581035097,-500.0,0.00019999,2]
[357928779,1744581035107,-500.0,0.00019999,2]
[357928780,1744581035116,-500.0,0.00019999,2]
[357928781,1744581035126,-500.0,0.00019999,2]
[357928782,1744581035135,-500.0,0.00019999,2]
[357928783,1744581035145,-500.0,0.00019999,2]
[357928784,1744581035155,-500.0,0.00019999,2]
[357928785,1744581035165,-500.0,0.00019999,2]
[357928786,1744581035175,-500.0,0.00019999,2]
[357928787,1744581035188,-500.0,0.00019999,2]
[357928788,1744581035198,-500.0,0.00019999,2]
[357928789,1744581035208,-500.0,0.00019999,2]
[357928790,1744581035218,-500.0,0.00019999,2]
[357928791,1744581035227,-500.0,0.00019999,2]
[357928792,1744581035237,-500.0,0.00019999,2]
[357928793,1744581035247,-500.0,0.00019999,2]
[357928794,1744581035257,-500.0,0.00019999,2]
[357928795,1744581035267,-500.0,0.00019999,2]
[357928796,1744581035277,-553.78880007,0.00019999,2]
[357928797,1744581035287,-500.0,0.00019999,2]
[357928798,1744581035296,-500.0,0.00019999,2]
[357928799,1744581035306,-500.0,0.00019999,2]
[357928800,1744581035316,-329.59278847,0.00019999,2]
[357928801,1744581035326,-500.0,0.00019999,2]
[357928802,1744581035336,-500.0,0.00019999,2]
[357928803,1744581035346,-500.0,0.00019999,2]
[357928804,1744581035357,-500.0,0.00019999,2]
[357928805,1744581035367,-500.0,0.00019999,2]
[357928806,1744581035376,-500.0,0.00019999,2]
[357928807,1744581035386,-500.0,0.00019999,2]
[357928808,1744581035396,-500.0,0.00019999,2]
[357928809,1744581035406,-500.0,0.00019999,2]
[357928810,1744581035415,-500.0,0.00019999,2]
[357928811,1744581035425,-500.0,0.00019999,2]
[357928812,1744581035436,-500.0,0.00019999,2]
[357928813,1744581035447,-322.26900454,0.00019999,2]
[357928814,1744581035457,-500.0,0.00019999,2]
[357928815,1744581035467,-550.0,0.00019999,2]
[357928816,1744581035477,-500.0,0.00019999,2]
[357928817,1744581035487,-500.0,0.00019999,2]
[357928818,1744581035497,-500.0,0.00019999,2]
[357928819,1744581035507,-500.0,0.00019999,2]
[357928820,1744581035518,-500.0,0.00019999,2]
[357928821,1744581035528,-500.0,0.00019999,2]
[357928822,1744581035539,-176.71352868,0.00019999,2]
[357928823,1744581035549,-289.48457429,0.00019999,2]
[357928824,1744581035558,-240.68638635,0.00019999,2]
[357928825,1744581035568,-618.0,0.0002,2]
[357928826,1744581035578,-100502.63927667,0.0002,2]
[357928827,1744581035588,-1010541.85925827,0.0002,2]
[357928828,1744581035605,-883.5939616,0.0002,2]
[357928829,1744581035618,-507.03837421,0.0002,2]
[357928830,1744581035636,-354.29549023,0.0002,2]
[357928831,1744581035661,-8126.82599587,0.0002,2]
[357928832,1744581035673,-18073.41598014,0.0002,2]
[357928833,1744581036503,-150.0,0.00019178,2]
[357928839,1744581037679,-350.0,0.00019178,2]
[357928840,1744581037691,-356.34255804,0.00019178,2]
[357928841,1744581037701,-324.83,0.00019452,2]
[357928842,1744581037710,-445.7574825,0.0002,2]
[357928843,1744581037722,-1891.23548435,0.0002,2]
[357928844,1744581037734,-404.8366836,0.0002,2]
[357928845,1744581037756,-150.0,0.00019999,2]
[357928846,1744581037766,-1971.72854114,0.0002,2]
[357928847,1744581037813,-13104.09970125,0.0002,2]
[357928848,1744581037824,-438.66052505,0.0002,2]
[357928849,1744581037882,-1069.33880388,0.0002,2]
[357928850,1744581037950,-1818.63834913,0.0002,2]
[357928851,1744581037962,-355.99999955,0.0002,2]
[357928852,1744581037974,-7706.29235883,0.0002,2]
[357928853,1744581037986,-72248.51557445,0.0002,2]
[357928854,1744581037995,-500.0,0.0002,2]
[357928855,1744581038005,-50763.00173085,0.0002,2]
[357928856,1744581038022,-1250.3974799,0.0002,2]
[357928857,1744581038090,-1159.30794588,0.0002,2]
[357928875,1744581038334,-150.0,0.0002,2]
[357928905,1744581039418,-281.80956865,0.0002,2]
[357928908,1744581039762,-100387.5529411,0.0002,2]
[357928909,1744581039899,-7020.03198694,0.0002,2]
[357928910,1744581039910,-300.06606791,0.0002,2]
[357928911,1744581040030,-0.04874521,0.0002,2]
[357928912,1744581040043,-335.21363729,0.0002,2]
[357928913,1744581040067,-35487.80000082,0.0002,2]
[357928914,1744581041304,-346.94941179,0.00019178,2]
[357928915,1744581041318,-153.05058821,0.00019178,2]
[357928916,1744581041327,-789.41464982,0.0002,2]
[357928917,1744581041339,-2411.43686824,0.0002,2]
[357928918,1744581041351,-457.45496847,0.0002,2]
[357928919,1744581041388,-1232.19,0.0002,2]
[357928920,1744581041400,-34642.14179151,0.0002,2]
[357928921,1744581041412,-668.622,0.0002,2]
[357928922,1744581041455,-188681.93600707,0.0002,2]
[357928923,1744581041468,-3799.77889769,0.0002,2]
[357928924,1744581041480,-3406.53206596,0.0002,2]
[357928925,1744581041532,-941.68,0.0002,2]
[357928926,1744581041544,-4307.56043718,0.0002,2]
[357928927,1744581041555,-905.81429486,0.0002,2]
[357928928,1744581041566,-1007.65390319,0.0002,2]
[357928938,1744581042695,-646.27217519,0.00019178,2]
[357928939,1744581042705,-231.361,0.00019999,2]
[357928940,1744581042714,-13784.72579387,0.0002,2]
[357928941,1744581042726,-293.86565485,0.0002,2]
[357928942,1744581042739,-2167.60937502,0.0002,2]
[357928953,1744581044013,-3016.89072525,0.0002,2]
[357928954,1744581044024,-2210.13259537,0.0002,2]
[357928955,1744581044036,-7605.72871212,0.0002,2]
[357928956,1744581044047,-4908.14087623,0.0002,2]
[357928957,1744581044059,-836.64545722,0.0002,2]
[357928958,1744581044071,-10632.41659197,0.0002,2]
[357928975,1744581046896,-712.81818153,0.0002,2]
[357928976,1744581046953,-175.93097323,0.00019178,2]
[357928977,1744581047016,-331.77359968,0.00019178,2]
[357928978,1744581047026,-500.0,0.00019178,2]
[357928979,1744581047036,-500.0,0.00019178,2]
[357928980,1744581047046,-390.01658611,0.000199,2]
[357928981,1744581047055,-562.0,0.0002,2]
[357928982,1744581047066,-13383.50981421,0.0002,2]
[357928983,1744581047082,-486.14361514,0.0002,2]
[357928984,1744581047095,-260.63,0.0002,2]
[357928985,1744581047107,-1402.85794574,0.0002,2]
[357928986,1744581047119,-1135.375005,0.0002,2]
[357928987,1744581047134,-105280.57266267,0.0002,2]
[357928988,1744581047145,-2870.97047481,0.0002,2]
[357928989,1744581047156,-588.83469597,0.0002,2]
[357928990,1744581219680,597.53841,0.0002,23]
[357928991,1744581538955,497.94868,0.0002,23]
[357928992,1744581790472,1926.28,0.00016552,2]
[357928993,1744581844794,497.94869,0.000248,34]
[357928994,1744582164264,331.96578,0.0002,23]
[357928998,1744582231843,-150.0,0.00018371,2]
[357928999,1744582231853,-250.0,0.00018385,2]
[357929000,1744582231862,-166.23,0.00018408,2]
[357929001,1744582231872,-200.0,0.00018427,2]
[357929002,1744582231882,-1927.8,0.00018429,2]
[357929003,1744582231894,-309.06,0.00018438,2]
[357929004,1744582231903,-2000.0,0.00018438,2]
[357929005,1744582231912,-200.0,0.0001844,2]
[357929006,1744582231921,-2422.69,0.00018449,2]
[357929007,1744582231931,-300.0,0.00018725,2]
[357929008,1744582231940,-850.0,0.00018727,2]
[357929009,1744582231950,-23900.0,0.00018728,2]
[357929010,1744582231959,-818.58,0.00018728,2]
[357929011,1744582231968,-269.69347447,0.00018733,2]
[357929012,1744582231980,-548.88652553,0.00018733,2]
[357929013,1744582231989,-818.58,0.00018738,2]
[357929014,1744582231998,-3601.62,0.00018741,2]
[357929015,1744582232010,-818.58,0.00018743,2]
[357929016,1744582232022,-818.58,0.00018748,2]
[357929017,1744582232031,-818.58,0.00018752,2]
[357929018,1744582232041,-818.58,0.00018757,2]
[357929019,1744582232051,-818.58,0.00018762,2]
[357929020,1744582232060,-818.58,0.00018767,2]
[357929021,1744582232076,-98.36566861,0.00018772,2]
[357929022,1744582232087,-720.21433139,0.00018772,2]
[357929023,1744582232097,-818.58,0.00018777,2]
[357929024,1744582232109,-818.58,0.00018782,2]
[357929025,1744582232118,-818.58,0.00018787,2]
[357929026,1744582232128,-818.58,0.00018792,2]
[357929027,1744582232138,-818.58,0.00018797,2]
[357929028,1744582232147,-818.58,0.00018802,2]
[357929029,1744582232157,-818.58,0.00018807,2]
[357929030,1744582232167,-818.58,0.00018812,2]
[357929031,1744582232176,-1926.28,0.00018815,2]
[357929032,1744582232187,-818.58,0.00018817,2]
[357929033,1744582232198,-1938.43,0.0001882,2]
[357929034,1744582232208,-818.58,0.00018821,2]
[357929069,1744582232442,-2132.46,0.00018827,2]
[357929072,1744582232453,-8415.28,0.00018842,2]
[357929075,1744582232464,-500.0,0.0001885,2]
[357929078,1744582232474,-9739.92,0.00018856,2]
[357929081,1744582232484,-250.0,0.00018862,2]
[357929084,1744582232494,-922.27,0.00018866,2]
[357929086,1744582232503,-423.8,0.00018871,2]
[357929088,1744582232513,-1000.0,0.00018871,2]
[357929090,1744582232523,-227.87,0.00019,2]
[357929093,1744582232539,-227.87,0.00019,2]
[357929095,1744582232549,-227.87,0.00019,2]
[357929097,1744582232559,-227.87,0.00019,2]
[357929099,1744582232568,-227.87,0.00019,2]
[357929101,1744582232578,-167.59,0.00019009,2]
[357929103,1744582232587,-208.975716,0.00019166,2]
[357929104,1744582232597,-392.6,0.00019166,2]
[357929106,1744582232606,-506.4121362,0.00019178,2]
[357929108,1744582232615,-520.84483758,0.00019178,2]
[357929110,1744582232624,-500.0,0.00019178,2]
[357929112,1744582232634,-2000.0,0.00019178,2]
[357929114,1744582232643,-500.0,0.00019178,2]
[357929116,1744582232652,-500.0,0.00019178,2]
[357929118,1744582232662,-500.0,0.00019178,2]
[357929120,1744582232671,-500.0,0.00019178,2]
[357929122,1744582232680,-500.0,0.00019178,2]
[357929123,1744582232689,-500.0,0.00019178,2]
[357929124,1744582232699,-500.0,0.00019178,2]
[357929126,1744582232711,-500.0,0.00019178,2]
[357929127,1744582232721,-500.0,0.00019178,2]
[357929129,1744582232731,-527.80592133,0.00019178,2]
[357929131,1744582232740,-500.0,0.00019178,2]
[357929132,1744582232750,-500.0,0.00019178,2]
[357929133,1744582232759,-500.0,0.00019178,2]
[357929134,1744582232769,-500.0,0.00019178,2]
[357929135,1744582232779,-610.11,0.00019178,2]
[357929136,1744582232789,-500.0,0.00019178,2]
[357929137,1744582232799,-500.0,0.00019178,2]
[357929138,1744582232808,-500.0,0.00019178,2]
[357929139,1744582232818,-500.0,0.00019178,2]
[357929140,1744582232828,-500.0,0.00019178,2]
[357929141,1744582232837,-500.0,0.00019178,2]
[357929142,1744582232847,-500.0,0.00019178,2]
[357929143,1744582232860,-557.32555147,0.00019178,2]
[357929144,1744582232869,-520.99386634,0.00019178,2]
[357929145,1744582232879,-500.0,0.00019178,2]
[357929146,1744582232888,-500.0,0.00019178,2]
[357929147,1744582232898,-500.0,0.00019178,2]
[357929148,1744582232908,-500.0,0.00019178,2]
[357929149,1744582232917,-500.0,0.00019178,2]
[357929150,1744582232927,-506.67686059,0.00019178,2]
[357929151,1744582232937,-500.0,0.00019178,2]
[357929152,1744582232946,-553.33,0.00019178,2]
[357929153,1744582232956,-534.35,0.00019178,2]
[357929154,1744582232969,-518.60092767,0.00019178,2]
[357929155,1744582232978,-500.0,0.00019178,2]
[357929156,1744582232987,-500.0,0.00019178,2]
[357929157,1744582232997,-500.0,0.00019178,2]
[357929158,1744582233008,-500.0,0.00019178,2]
[357929159,1744582233017,-627.51,0.00019178,2]
[357929160,1744582233027,-565.11924953,0.00019178,2]
[357929161,1744582233037,-530.39729773,0.00019178,2]
[357929162,1744582233047,-536.54165226,0.00019178,2]
[357929163,1744582233057,-500.0,0.00019178,2]
[357929164,1744582233066,-500.0,0.00019178,2]
[357929165,1744582233076,-565.58085776,0.00019178,2]
[357929166,1744582233087,-500.0,0.00019178,2]
[357929167,1744582233097,-529.50551893,0.00019178,2]
[357929168,1744582233106,-500.0,0.00019178,2]
[357929169,1744582233115,-500.0,0.00019178,2]
[357929170,1744582233125,-520.7221246,0.00019178,2]
[357929171,1744582233135,-500.0,0.00019178,2]
[357929172,1744582233144,-500.0,0.00019178,2]
[357929173,1744582233154,-531.77337865,0.00019178,2]
[357929174,1744582233164,-500.0,0.00019178,2]
[357929175,1744582233174,-500.0,0.00019178,2]
[357929176,1744582233183,-611.31,0.00019178,2]
[357929177,1744582233193,-500.0,0.00019178,2]
[357929178,1744582233202,-500.0,0.00019178,2]
[357929179,1744582233211,-500.0,0.00019178,2]
[357929180,1744582233221,-301.47,0.00019178,2]
[357929181,1744582233231,-500.0,0.00019178,2]
[357929182,1744582233240,-521.59292342,0.00019178,2]
[357929183,1744582233250,-500.0,0.00019178,2]
[357929184,1744582233259,-512.62134853,0.00019178,2]
[357929185,1744582233269,-500.0,0.00019178,2]
[357929186,1744582233279,-500.0,0.00019178,2]
[357929187,1744582233288,-514.23927904,0.00019178,2]
[357929188,1744582233297,-514.04770604,0.00019178,2]
[357929189,1744582233307,-504.5930849,0.00019178,2]
[357929190,1744582233316,-521.95971181,0.00019178,2]
[357929191,1744582233326,-509.06263834,0.00019178,2]
[357929192,1744582233336,-500.0,0.00019178,2]
[357929193,1744582233345,-213.36,0.00019178,2]
[357929194,1744582233354,-500.0,0.00019178,2]
[357929195,1744582233364,-556.04457897,0.00019178,2]
[357929196,1744582233373,-528.28216689,0.00019178,2]
[357929197,1744582233382,-500.0,0.00019178,2]
[357929198,1744582233392,-440.81817929,0.00019178,2]
[357929199,1744582233402,-500.0,0.00019178,2]
[357929200,1744582233412,-510.58422793,0.00019178,2]
[357929201,1744582233423,-500.0,0.00019178,2]
[357929202,1744582233433,-500.0,0.00019178,2]
[357929203,1744582233443,-500.0,0.00019178,2]
[357929204,1744582233453,-500.0,0.00019178,2]
[357929205,1744582233464,-2732.56,0.00019178,2]
[357929206,1744582233474,-229.35618156,0.00019178,2]
[357929207,1744582233484,-530.06099091,0.00019178,2]
[357929208,1744582233494,-531.71047354,0.00019178,2]
[357929209,1744582233503,-661.95,0.00019178,2]
[357929210,1744582233513,-500.0,0.00019178,2]
[357929211,1744582233524,-500.0,0.00019178,2]
[357929212,1744582233534,-500.0,0.00019178,2]
[357929213,1744582233547,-507.60310901,0.00019178,2]
[357929214,1744582233556,-515.09705237,0.00019178,2]
[357929215,1744582233566,-500.0,0.00019178,2]
[357929216,1744582233575,-500.0,0.00019178,2]
[357929217,1744582233585,-1852.42,0.00019234,2]
[357929218,1744582233596,-1896.734,0.00019252,2]
[357929219,1744582233605,-150.99,0.00019339,2]
[357929220,1744582233615,-360.71314289,0.00019352,2]
[357929221,1744582233625,-410.4872602,0.00019399,2]
[357929222,1744582233635,-2389.88614109,0.000194,2]
[357929223,1744582233646,-2389.8861411,0.000194,2]
[357929224,1744582233656,-360.71314288,0.00019413,2]
[357929225,1744582233666,-2000.0,0.00019452,2]
[357929226,1744582233675,-178.71,0.00019452,2]
[357929227,1744582233685,-255.45,0.00019452,2]
[357929228,1744582233694,-204.64,0.00019452,2]
[357929229,1744582233704,-270.52,0.00019452,2]
[357929230,1744582233714,-255.1,0.00019452,2]
[357929231,1744582233724,-500.0,0.00019452,2]
[357929232,1744582233733,-382.55,0.00019452,2]
[357929233,1744582233743,-500.0,0.00019452,2]
[357929234,1744582233753,-213.38,0.00019452,2]
[357929235,1744582233764,-168.47,0.00019452,2]
[357929236,1744582233774,-500.0,0.00019452,2]
[357929237,1744582233784,-235.31,0.00019452,2]
[357929238,1744582233794,-2732.56,0.00019452,2]
[357929239,1744582233804,-661.95,0.00019452,2]
[357929240,1744582233814,-383.23,0.00019452,2]
[357929241,1744582233824,-500.0,0.00019452,2]
[357929242,1744582233833,-500.0,0.00019452,2]
[357929243,1744582233843,-360.71314288,0.00019474,2]
[357929244,1744582233853,-360.71314288,0.00019535,2]
[357929245,1744582233863,-360.71314288,0.00019596,2]
[357929246,1744582233873,-3963.0,0.00019655,2]
[357929247,1744582233884,-152.0,0.00019655,2]
[357929248,1744582233894,-1122.0,0.00019655,2]
[357929249,1744582233904,-360.71314288,0.00019656,2]
[357929250,1744582233914,-360.71314288,0.00019717,2]
[357929251,1744582233924,-2000.0,0.00019726,2]
[357929252,1744582233933,-376.14,0.00019726,2]
[357929253,1744582233943,-591.28,0.00019726,2]
[357929254,1744582233953,-535.14,0.00019726,2]
[357929255,1744582233964,-150.0,0.00019726,2]
[357929256,1744582233974,-2732.56,0.00019726,2]
[357929257,1744582233984,-661.95,0.00019726,2]
[357929258,1744582233995,-500.0,0.00019726,2]
[357929259,1744582234004,-484.39360735,0.00019726,2]
[357929260,1744582234017,-150.0,0.00019727,2]
[357929261,1744582234027,-150.0,0.00019728,2]
[357929262,1744582234037,-150.0,0.00019729,2]
[357929263,1744582234046,-150.0,0.00019732,2]
[357929264,1744582234056,-150.0,0.00019732,2]
[357929265,1744582234067,-150.0,0.00019738,2]
[357929266,1744582234077,-150.0,0.00019741,2]
[357929267,1744582234087,-150.0,0.00019741,2]
[357929268,1744582234099,-150.0,0.00019749,2]
[357929269,1744582234110,-150.0,0.00019749,2]
[357929270,1744582234120,-150.0,0.00019753,2]
[357929271,1744582234130,-150.0,0.00019753,2]
[357929272,1744582234138,-150.0,0.00019762,2]
[357929273,1744582234148,-150.0,0.00019762,2]
[357929274,1744582234157,-150.0,0.00019763,2]
[357929275,1744582234167,-150.0,0.00019763,2]
[357929276,1744582234176,-150.0,0.00019765,2]
[357929277,1744582234186,-150.0,0.00019765,2]
[357929278,1744582234195,-150.0,0.00019772,2]
[357929279,1744582234205,-150.0,0.00019774,2]
[357929280,1744582234215,-165.0,0.00019776,2]
[357929281,1744582234224,-360.71314288,0.00019778,2]
[357929282,1744582234234,-150.0,0.00019783,2]
[357929283,1744582234243,-150.0,0.00019788,2]
[357929284,1744582234253,-150.0,0.00019795,2]
[357929285,1744582234262,-150.0,0.00019796,2]
[357929286,1744582234272,-150.0,0.00019797,2]
[357929287,1744582234282,-28734.417,0.000198,2]
[357929288,1744582234292,-2574.8799,0.000198,2]
[357929289,1744582234302,-150.0,0.000198,2]
[357929290,1744582234312,-150.0,0.00019801,2]
[357929291,1744582234322,-150.0,0.00019818,2]
[357929292,1744582234332,-150.0,0.00019828,2]
[357929293,1744582234342,-150.0,0.00019834,2]
[357929294,1744582234352,-150.0,0.00019835,2]
[357929295,1744582234361,-150.0,0.00019836,2]
[357929296,1744582234371,-165.87429171,0.00019837,2]
[357929297,1744582234380,-150.0,0.00019837,2]
[357929298,1744582234389,-360.71314288,0.00019839,2]
[357929299,1744582234400,-150.0,0.0001985,2]
[357929300,1744582234410,-150.0,0.00019853,2]
[357929301,1744582234420,-150.0,0.00019874,2]
[357929302,1744582234430,-374.299,0.0001988,2]
[357929303,1744582234439,-150.0,0.00019881,2]
[357929304,1744582234449,-150.0,0.00019883,2]
[357929305,1744582234459,-3597.2446305,0.00019886,2]
[357929306,1744582234468,-298.4239,0.00019886,2]
[357929307,1744582234479,-3597.24463048,0.00019888,2]
[357929308,1744582234488,-3597.24463048,0.00019889,2]
[357929309,1744582234498,-3597.24463048,0.00019891,2]
[357929310,1744582234508,-3597.24463048,0.00019892,2]
[357929311,1744582234517,-3597.24463048,0.00019894,2]
[357929312,1744582234526,-2813.65414166,0.00019895,2]
[357929313,1744582234541,-783.59048882,0.00019895,2]
[357929314,1744582234551,-2287.74260609,0.00019897,2]
[357929315,1744582234563,-757.8900005,0.00019897,2]
[357929316,1744582234581,-551.61202389,0.00019897,2]
[357929317,1744582234590,-150.0,0.00019898,2]
[357929318,1744582234600,-3597.24463048,0.00019898,2]
[357929319,1744582234609,-5000.0,0.000199,2]
[357929320,1744582234619,-1843.33086206,0.000199,2]
[357929321,1744582234631,-617.01383794,0.000199,2]
[357929322,1744582234642,-163.52750082,0.000199,2]
[357929323,1744582234651,-717.83722993,0.000199,2]
[357929324,1744582234664,-141.45997007,0.000199,2]
[357929325,1744582234674,-150.0,0.000199,2]
[357929326,1744582234683,-210.8174,0.000199,2]
[357929327,1744582234693,-153.89998754,0.000199,2]
[357929328,1744582234703,-5.85119213,0.000199,2]
[357929329,1744582234716,-3591.39343835,0.000199,2]
[357929330,1744582234725,-199.10359753,0.000199,2]
[357929331,1744582234735,-846.64984969,0.000199,2]
[357929332,1744582234745,-360.71314288,0.000199,2]
[357929333,1744582234754,-501.0,0.0001991,2]
[357929334,1744582234764,-150.0,0.0001991,2]
[357929335,1744582234774,-3615.0,0.00019916,2]
[357929336,1744582234784,-150.0,0.00019918,2]
[357929337,1744582234795,-150.0,0.00019922,2]
[357929338,1744582234804,-150.0,0.00019935,2]
[357929339,1744582234814,-300.0,0.00019938,2]
[357929340,1744582234824,-150.0,0.00019939,2]
[357929341,1744582234837,-150.0,0.00019939,2]
[357929342,1744582234848,-259.58,0.0001994,2]
[357929343,1744582234858,-150.0,0.00019941,2]
[357929344,1744582234869,-150.0,0.00019952,2]
[357929345,1744582234880,-150.0,0.00019953,2]
[357929346,1744582234890,-150.0,0.00019954,2]
[357929347,1744582234899,-150.0,0.00019955,2]
[357929348,1744582234910,-150.0,0.00019961,2]
[357929349,1744582234932,-150.0,0.00019963,2]
[357929350,1744582234944,-150.0,0.00019963,2]
[357929351,1744582234955,-150.0,0.00019969,2]